bitfinex/quotes_ETHUSD_20250414
["timestamp","ask_amount","ask_price","bid_price","bid_amount"]
[1744637711020,0.55,1663.4,1663.1,0.05]
[1744637711216,9.7259,1663.8,1663.3,6.01199]
[1744637711543,19.71960851,1664.1,1663.5,0.77]
[1744637711544,12.9788,1664.1,1663.5,0.77]
[1744637711772,6.9694,1664.4,1663.6,0.06009688]
[1744637711910,0.7994,1664.7,1664.1,0.77]
[1744637712111,0.7994,1664.7,1664.5,6.00777]
[1744637712320,0.7994,1664.7,1664.2,0.06007971]
[1744637712534,0.7994,1664.7,1664.1,7.456953]
[1744637712733,6.00749,1664.6,1664.1,1.447933]
[1744637712936,6.80663,1664.7,1664.2,6.06879921]
[1744637713245,6.80663,1664.7,1664.1,6.77906]
[1744637713246,0.7994,1664.7,1664.3,6.00846]
[1744637713614,8.878,1664.8,1664.4,6.00813]
[1744637713962,8.878,1664.8,1664.4,6.00811]
[1744637714115,8.878,1664.8,1664.1,0.77]
[1744637714311,8.878,1664.8,1664.2,6.00881]
[1744637714517,8.878,1664.8,1664.6,6.00726]
[1744637714746,6.00582,1665.1,1664.7,6.06692542]
[1744637714747,0.797,1665.1,1664.7,6.06692542]
[1744637714951,0.797,1665.1,1664.7,0.06006542]
[1744637715245,0.797,1665.1,1664.6,12.01466]
[1744637715439,0.797,1665.1,1664.7,0.06005979]
[1744637715751,0.7891,1665.4,1665.1,6.00559]
[1744637715913,15.047,1665.6,1664.9,6.00635]
[1744637715914,9.6646,1665.6,1664.9,6.00635]
[1744637716120,9.6646,1665.6,1664.9,6.00617]
[1744637716121,12.00892,1665.5,1664.9,6.00617]
[1744637716328,6.00446,1665.5,1665.0,12.0117]
[1744637716514,15.66846,1665.6,1665.0,6.80365]
[1744637716718,9.6646,1665.6,1665.1,6.00535]
[1744637716939,15.66848,1665.6,1665.1,6.00535]
[1744637717142,14.20459851,1665.6,1664.7,10.27944998]
[1744637717463,6.0048,1665.4,1664.9,6.00634]
[1744637717623,6.00476,1665.4,1664.9,6.606974]
[1744637717820,6.55421,1665.5,1665.0,0.06004972]
[1744637718025,15.66845,1665.6,1665.0,6.00595]
[1744637718222,4.53999851,1665.3,1664.7,0.60674998]
[1744637718443,6.55496,1665.3,1664.8,6.00653]
[1744637718645,6.55496,1665.3,1664.8,12.01309]
[1744637718866,6.00456,1665.4,1664.6,6.00739]
[1744637718867,6.55456,1665.4,1664.6,6.00739]
[1744637719066,0.55,1665.0,1664.6,6.00733]
[1744637719305,6.55601,1665.0,1664.5,6.00774]
[1744637719422,0.55,1664.8,1664.5,0.678584]
[1744637719738,0.55,1664.9,1664.5,6.00769]
[1744637719950,0.55,1664.9,1664.0,17.88434]
[1744637719951,5.08999851,1664.9,1664.1,6.8137]
[1744637720138,5.08999851,1664.9,1663.8,6.01032]
[1744637720139,6.55829,1664.4,1663.9,6.00994]
[1744637720465,6.55829,1664.4,1663.8,6.81478]
[1744637720466,6.55828,1664.4,1663.8,6.81476]
[1744637720672,0.55,1664.2,1663.8,6.81476]
[1744637720873,6.55902,1664.2,1663.8,2.087039]
[1744637721079,0.55,1664.3,1663.6,6.01084]
[1744637721372,0.55,1663.9,1663.6,6.01084]
[1744637721677,0.7779,1664.7,1663.8,0.8254]
[1744637721978,6.00658,1664.9,1664.3,6.83359]
[1744637722126,12.79018,1665.0,1664.5,6.00767]
[1744637722326,6.00651,1664.9,1664.5,0.600767]
[1744637722562,0.7779,1665.0,1664.5,0.600767]
[1744637722563,12.79014,1665.0,1664.5,0.600767]
[1744637722743,0.7608,1665.3,1664.9,6.00636]
[1744637722918,0.7608,1665.3,1664.8,6.00666]
[1744637723123,0.7608,1665.3,1664.8,6.00657]
[1744637723389,6.76576,1665.3,1664.9,0.600657]
[1744637723659,0.7608,1665.3,1665.1,6.00551]
[1744637723829,6.00475,1665.4,1664.9,12.613107]
[1744637724030,6.00475,1665.4,1664.9,6.606857]
[1744637724232,0.55,1665.3,1664.9,6.606957]
[1744637724440,0.55,1665.3,1665.0,0.6606957]
[1744637724652,0.55,1665.3,1664.9,6.00624]
[1744637725259,6.00549,1665.2,1664.7,6.76348]
[1744637725431,0.55,1665.4,1664.8,6.00658]
[1744637725628,6.55507,1665.3,1664.8,6.00659]
[1744637725828,0.55,1665.3,1665.0,6.00586]
[1744637726472,0.55,1665.3,1664.9,6.606829]
[1744637726628,6.00456,1665.4,1664.7,0.7564]
[1744637726850,12.01168,1665.1,1664.7,0.7564]
[1744637727053,12.01167,1665.1,1664.6,14.88127]
[1744637727249,6.55526,1665.3,1664.6,8.874]
[1744637727486,0.55,1665.2,1664.7,6.00695]
[1744637727779,0.55,1665.3,1664.9,12.0124]
[1744637728086,0.55,1665.3,1664.9,6.00618]
[1744637728279,17.2559696,1665.6,1664.8,0.600695]
[1744637728280,0.55,1665.2,1664.8,0.600695]
[1744637728668,0.55,1665.2,1664.8,6.00665]
[1744637728863,6.00577,1665.1,1664.7,6.00694]
[1744637729045,6.00647,1664.9,1664.5,6.608527]
[1744637729244,6.55686,1664.8,1664.4,6.79213]
[1744637729443,6.55601,1665.0,1664.3,6.00853]
[1744637729677,0.55,1665.0,1664.6,6.00729]
[1744637729851,6.55602,1665.0,1664.5,12.01556]
[1744637730052,12.56224,1665.0,1664.5,12.01556]
[1744637730386,12.56221,1665.0,1664.5,13.216996]
[1744637730682,0.7975,1665.1,1664.9,6.00622]
[1744637730884,12.01017,1665.3,1664.8,12.01329]
[1744637731089,6.00577,1665.1,1664.7,6.76896]
[1744637731386,6.0066,1664.9,1664.4,6.76994]
[1744637731582,6.00719,1664.7,1664.2,6.77064]
[1744637731782,0.55,1664.8,1664.3,6.00853]
[1744637731783,0.72642389,1664.8,1664.3,6.00853]
[1744637731990,0.17554406,1664.6,1664.4,6.00805]
[1744637732191,0.175984,1664.7,1664.4,6.00805]
[1744637732499,0.55,1664.8,1664.4,6.00804]
[1744637732702,0.17554406,1664.6,1664.5,6.00778]
[1744637732882,0.55,1664.8,1664.4,6.608945]
[1744637733200,0.175984,1664.7,1664.6,6.00744]
[1744637733698,8.873,1665.1,1664.8,6.00661]
[1744637733900,14.87889,1665.1,1664.6,6.00729]
[1744637734196,14.87889,1665.1,1664.7,6.00696]
[1744637734558,8.873,1665.1,1664.7,12.01387]
[1744637734991,14.87883,1665.1,1664.7,6.00693]
[1744637735175,8.873,1665.1,1664.8,6.00655]
[1744637735371,8.873,1665.1,1664.7,0.8047]
[1744637735581,8.873,1665.1,1664.8,6.00662]
[1744637735772,6.00538,1665.2,1664.8,13.295153]
[1744637735973,6.76135,1665.3,1664.8,13.295153]
[1744637736315,6.00542,1665.2,1664.8,6.00672]
[1744637736483,0.55,1665.1,1664.8,6.00672]
[1744637736671,6.5557,1665.1,1664.7,6.8117]
[1744637737271,0.55,1664.9,1664.5,6.00768]
[1744637737471,6.55651,1664.9,1664.5,6.00766]
[1744637737669,6.006,1665.0,1664.5,1.3403255]
[1744637737874,6.00713,1664.7,1664.2,12.77448]
[1744637738072,6.55678,1664.8,1664.3,6.00851]
[1744637738373,0.55,1664.6,1664.0,6.00952]
[1744637738602,6.00835,1664.4,1664.0,6.00952]
[1744637738803,6.0079,1664.5,1664.1,0.600952]
[1744637739008,0.55,1664.7,1664.3,6.0084]
[1744637739210,6.00676,1664.8,1664.4,6.00805]
[1744637739421,6.00676,1664.8,1664.3,6.0084]
[1744637739422,0.55,1664.7,1663.9,0.7569]
[1744637739580,0.55,1664.7,1663.6,8.4685259]
[1744637739581,6.55961,1664.0,1663.6,2.4574659]
[1744637739926,12.56941,1664.0,1663.6,9.31538749]
[1744637740082,6.56069,1663.7,1663.6,2.4574659]
[1744637740481,7.31069,1663.7,1663.6,2.4574659]
[1744637740883,11.8596596,1663.7,1663.6,2.4574659]
[1744637741083,7.31069,1663.7,1663.6,2.4574659]
[1744637741724,6.17,1663.9,1663.6,8.4682659]
[1744637741879,6.17,1663.9,1663.6,3.30429249]
[1744637741880,0.55,1663.9,1663.6,3.30429249]
[1744637742214,6.01034,1663.8,1663.6,2.4574659]
[1744637742531,6.00999,1663.9,1663.6,2.4574659]
[1744637742829,0.55,1663.9,1663.6,8.4684959]
[1744637743517,0.55,1663.9,1663.6,8.4683759]
[1744637743736,6.56016,1663.9,1663.6,2.4574659]
[1744637744031,6.56069,1663.7,1663.6,2.4574659]
[1744637744488,6.0125,1663.2,1663.1,0.05]
[1744637744813,6.01507,1662.5,1662.1,6.07134]
[1744637745108,0.55,1662.6,1662.1,7.280112]
[1744637745411,8.585,1662.8,1662.6,6.01453]
[1744637745579,6.77013,1663.0,1662.1,1.263812]
[1744637745909,0.55,1662.9,1662.5,6.01503]
[1744637746113,6.56363,1662.9,1662.6,0.06013747]
[1744637746312,6.77013,1663.0,1662.6,6.07455747]
[1744637746313,0.7569,1663.0,1662.6,6.07455747]
[1744637746487,0.55,1662.9,1662.4,12.78168]
[1744637746684,6.56385,1662.9,1662.4,6.76629]
[1744637746901,0.55,1662.9,1662.5,12.08995748]
[1744637747088,0.55,1662.9,1662.6,6.01467]
[1744637747282,0.55,1662.9,1662.5,12.08995748]
[1744637747478,0.7569,1663.0,1662.7,6.01405]
[1744637747685,0.55,1663.1,1662.6,6.01463]
[1744637747911,6.56307,1663.1,1662.6,6.616093]
[1744637748101,6.01344,1663.0,1662.6,6.616093]
[1744637748812,12.5759,1663.1,1662.6,12.630593]
[1744637749010,6.01365,1662.9,1662.5,6.01502]
[1744637749187,6.01359,1662.9,1662.4,7.443089]
[1744637749401,6.01398,1662.8,1662.4,7.442989]
[1744637749594,6.01493,1662.6,1662.1,6.90305]
[1744637749921,6.56565,1662.4,1662.1,0.055]
[1744637750422,6.01471,1662.6,1662.1,0.055]
[1744637750589,9.3467,1662.8,1662.4,6.01539]
[1744637750791,9.3467,1662.8,1662.3,6.01573]
[1744637750792,6.7718,1662.8,1662.3,6.01573]
[1744637751015,6.7718,1662.8,1662.4,6.01537]
[1744637751214,0.55,1662.7,1662.2,0.8317]
[1744637751413,6.5654,1662.4,1662.1,0.055]
[1744637751719,6.01578,1662.3,1662.1,0.055]
[1744637751944,6.77348,1662.3,1662.1,0.055]
[1744637752289,6.56612,1662.2,1662.1,0.055]
[1744637752501,0.7577,1662.3,1662.1,6.07142]
[1744637752818,0.55,1662.4,1662.1,6.678562]
[1744637753022,0.55,1662.4,1662.1,6.07132]
[1744637753230,13.00429,1662.6,1662.1,6.07132]
[1744637753231,0.8196,1662.6,1662.1,0.055]
[1744637753431,0.8196,1662.6,1662.2,6.01597]
[1744637753594,6.83428,1662.6,1662.1,6.88356]
[1744637753800,0.55,1662.5,1662.1,0.8672]
[1744637754093,6.01549,1662.4,1662.1,0.055]
[1744637754295,6.56504,1662.5,1662.1,0.055]
[1744637754532,0.55,1662.5,1662.1,0.662169]
[1744637754694,0.55,1662.5,1662.1,0.055]
[1744637754894,6.01601,1662.3,1662.1,0.055]
[1744637755136,7.38572,1662.2,1662.1,0.055]
[1744637755721,1.3696,1662.2,1662.1,0.055]
[1744637756114,7.38572,1662.2,1662.1,0.055]
[1744637757545,9.584991,1662.2,1662.1,0.055]
[1744637758302,15.754991,1662.2,1662.1,0.055]
[1744637758904,7.38572,1662.2,1662.1,0.055]
[1744637760149,0.55,1662.2,1662.1,0.055]
[1744637760655,6.56612,1662.2,1662.1,0.055]
[1744637760805,11.8980896,1662.2,1662.1,0.055]
[1744637761413,14.60691,1662.3,1662.1,0.055]
[1744637761414,6.01587,1662.3,1662.1,0.055]
[1744637761614,6.17,1662.4,1662.1,0.055]
[1744637761814,12.18572,1662.4,1662.1,0.055]
[1744637762041,6.01612,1662.2,1662.1,0.055]
[1744637762205,13.482282,1662.4,1662.1,0.055]
[1744637762406,0.783,1662.5,1662.2,6.01582]
[1744637762620,0.783,1662.5,1662.2,6.01598]
[1744637762949,6.01612,1662.2,1662.1,0.055]
[1744637763163,9.79912,1662.2,1662.1,0.055]
[1744637763342,10.34912,1662.2,1662.1,0.055]
[1744637763645,10.27082096,1662.2,1662.1,0.055]
[1744637763807,7.34912,1662.2,1662.1,0.055]
[1744637764210,6.56612,1662.2,1662.1,0.055]
[1744637764417,8.303,1662.3,1662.1,6.07148]
[1744637764610,12.02958,1662.6,1662.1,6.07135]
[1744637764943,0.783,1663.0,1662.8,6.01369]
[1744637765142,8.303,1663.1,1662.5,0.06013527]
[1744637765341,0.783,1663.4,1662.8,6.0139]
[1744637765511,6.01221,1663.3,1662.6,0.7619]
[1744637765707,6.79484,1663.4,1663.0,6.01304]
[1744637765708,6.79492,1663.4,1663.0,6.01304]
[1744637766012,6.01179,1663.4,1663.0,6.01307]
[1744637766209,20.32715,1663.5,1663.1,6.01271]
[1744637766406,6.01281,1663.2,1662.6,0.7619]
[1744637766639,15.5809846,1663.5,1662.6,0.7619]
[1744637766806,17.043485,1663.5,1663.0,6.01308]
[1744637767015,17.043485,1663.5,1662.7,6.01431]
[1744637767016,6.7849,1663.8,1663.2,6.01227]
[1744637767208,12.02165,1663.7,1663.3,6.01209]
[1744637767407,6.01074,1663.7,1663.3,6.01209]
[1744637767611,6.01074,1663.7,1663.2,6.01235]
[1744637767906,6.01093,1663.7,1663.3,6.01196]
[1744637768111,6.78469,1663.8,1663.4,6.01177]
[1744637768318,6.01072,1663.7,1663.3,6.01196]
[1744637768545,6.01118,1663.6,1663.1,6.01265]
[1744637768859,6.01118,1663.6,1663.1,0.601265]
[1744637768860,6.01161,1663.5,1663.1,0.601265]
[1744637769155,6.01238,1663.3,1662.9,6.01343]
[1744637769317,6.56287,1663.1,1662.7,6.01425]
[1744637769516,0.55,1663.1,1662.7,7.217142]
[1744637769723,8.302,1663.3,1663.0,6.01293]
[1744637769963,8.302,1663.3,1662.9,0.8007]
[1744637770279,8.302,1663.3,1663.0,6.01321]
[1744637770422,6.01262,1663.2,1662.9,0.8007]
[1744637770623,0.55,1663.2,1662.7,6.81496]
[1744637770827,6.013,1663.1,1662.7,7.496456]
[1744637771020,6.01304,1663.1,1662.7,7.496376]
[1744637771260,6.01304,1663.1,1662.7,7.496356]
[1744637771440,6.01296,1663.1,1662.7,7.496406]
[1744637771779,6.01359,1662.9,1662.2,0.8007]
[1744637772071,0.55,1662.7,1662.2,0.8007]
[1744637772237,0.7816,1662.6,1662.3,6.07590088]
[1744637772431,6.01432,1662.7,1662.2,6.016]
[1744637772670,6.56516,1662.5,1662.1,6.07137]
[1744637772881,6.56612,1662.2,1662.1,0.055]
[1744637774759,21.0903896,1662.2,1662.1,1e-05]
[1744637775475,6.0172,1661.9,1661.8,0.005]
[1744637775673,14.9272696,1661.9,1661.8,0.005]
[1744637775838,6.56961,1661.3,1661.1,0.11518384]
[1744637776169,6.56974,1661.2,1661.1,0.055]
[1744637776369,11.9468096,1661.2,1661.1,0.055]
[1744637776780,14.9468096,1661.2,1661.1,1e-05]
[1744637776931,17.04345156,1661.2,1661.1,1e-05]
[1744637777131,17.04345156,1661.2,1660.1,6.891]
[1744637777132,6.02243,1660.5,1660.3,0.06021534]
[1744637777374,6.02228,1660.5,1660.1,0.05]
[1744637777684,6.02231,1660.5,1660.1,0.05]
[1744637778037,6.02267,1660.4,1660.1,0.05]
[1744637778235,0.8305,1660.6,1660.2,6.02318]
[1744637778435,6.5725,1660.5,1660.1,6.680987]
[1744637778650,0.8305,1660.6,1660.2,6.02331]
[1744637778865,6.85254,1660.6,1660.2,6.02317]
[1744637779068,6.85254,1660.6,1660.2,6.6912277]
[1744637779231,6.02161,1660.7,1660.2,6.6914177]
[1744637779430,6.02161,1660.7,1660.3,6.02298]
[1744637779843,14.3252,1660.8,1660.5,6.02214]
[1744637779844,8.304,1660.8,1660.5,6.02214]
[1744637780043,8.304,1660.8,1660.4,0.819]
[1744637780243,14.32778,1661.0,1660.6,6.02163]
[1744637780444,14.32778,1661.0,1660.4,6.84143]
[1744637780445,6.02099,1660.9,1660.4,6.84143]
[1744637780649,6.02193,1660.6,1660.2,6.6912777]
[1744637780866,6.02337,1660.2,1660.1,0.05]
[1744637781167,11.1223396,1660.2,1660.1,0.05]
[1744637781367,0.55,1659.7,1659.3,0.3955096]
[1744637781535,6.02485,1659.8,1659.4,6.02625]
[1744637781732,8.307,1659.9,1659.4,1.25085859]
[1744637781936,8.307,1659.9,1659.5,6.02584]
[1744637782133,8.307,1659.9,1659.6,0.06024624]
[1744637782333,14.33148,1659.9,1659.4,6.02607]
[1744637782558,0.55,1659.8,1659.3,0.3955096]
[1744637782758,8.307,1659.9,1659.3,0.3955096]
[1744637782759,6.02627,1659.4,1659.3,0.3955096]
[1744637783070,6.84898,1659.7,1659.3,0.3955096]
[1744637783296,6.02604,1659.5,1659.3,0.3955096]
[1744637783494,19.4352396,1659.4,1659.3,0.3955096]
[1744637783804,14.88627,1659.4,1659.3,0.3955096]
[1744637784377,19.4352396,1659.4,1659.3,0.3955096]
[1744637784860,14.33627,1659.4,1659.3,0.3955096]
[1744637785207,8.31,1659.4,1659.3,0.3955096]
[1744637785696,15.15901,1659.7,1659.3,6.4221396]
[1744637785999,8.31,1659.7,1659.4,6.02612]
[1744637786294,20.3629,1659.8,1659.3,6.4219196]
[1744637786594,8.313,1659.8,1659.3,1.03770156]
[1744637786760,8.313,1659.8,1659.3,0.3955096]
[1744637787094,6.17,1660.1,1659.7,6.02507]
[1744637787095,6.02389,1660.1,1659.7,6.02507]
[1744637787273,12.04797,1660.1,1659.7,6.02507]
[1744637787465,14.33651,1660.2,1659.8,6.08486556]
[1744637787789,8.313,1660.2,1659.9,6.02426]
[1744637787992,8.313,1660.2,1660.0,6.02392]
[1744637788192,6.02235,1660.5,1660.0,6.02392]
[1744637788357,6.02235,1660.5,1660.1,0.06023069]
[1744637788681,8.313,1660.6,1660.1,0.06023069]
[1744637788883,8.313,1660.6,1660.4,6.02243]
[1744637789065,8.313,1660.6,1660.3,12.04577]
[1744637789393,8.313,1660.6,1660.3,6.02299]
[1744637789599,8.313,1660.6,1660.5,6.02228]
[1744637789798,6.02256,1660.5,1660.1,6.0236]
[1744637790102,6.02256,1660.5,1659.8,6.02473]
[1744637790103,6.02342,1660.2,1659.8,6.02475]
[1744637790259,0.55,1660.3,1659.8,6.02482]
[1744637790464,0.7563,1660.4,1660.0,6.02374]
[1744637790665,6.02193,1660.6,1660.3,6.023]
[1744637790891,15.08909,1660.7,1660.3,6.02275]
[1744637791301,15.08926,1660.7,1660.3,6.02299]
[1744637791614,21.11114,1660.7,1660.3,6.02299]
[1744637791770,6.9751,1661.0,1660.4,0.0602206]
[1744637791995,6.02131,1660.8,1660.2,0.7963]
[1744637792175,6.02163,1660.7,1660.4,6.02258]
[1744637792494,6.02221,1660.6,1660.2,6.8196]
[1744637792680,6.02221,1660.6,1660.2,12.84283]
[1744637792992,6.02242,1660.5,1660.2,1.284283]
[1744637793322,0.8051,1660.5,1660.0,0.7963]
[1744637793462,8.283,1660.6,1660.3,6.02285]
[1744637793669,14.30506,1660.6,1660.2,12.04652]
[1744637793871,14.30506,1660.6,1660.2,6.02319]
[1744637794188,14.30497,1660.6,1660.2,6.02327]
[1744637794383,8.283,1660.6,1660.2,6.625637]
[1744637794588,8.283,1660.6,1660.4,6.02238]
[1744637794792,6.82643,1660.8,1660.4,12.04484]
[1744637794973,12.84782,1660.8,1660.4,6.02238]
[1744637795286,0.55,1660.7,1660.2,0.602327]
[1744637795466,0.55,1660.7,1660.0,0.7963]
[1744637795467,6.0239,1660.1,1659.7,6.82143]
[1744637795662,6.0239,1660.1,1659.5,6.0256]
[1744637795663,12.04938,1659.9,1659.5,6.02578]
[1744637795899,6.02463,1659.9,1659.5,6.02578]
[1744637796069,6.025,1659.8,1659.4,12.84859]
[1744637796264,0.60239,1660.1,1659.6,6.02554]
[1744637796498,0.60239,1660.1,1659.5,6.02583]
[1744637796499,6.02471,1659.9,1659.5,6.02583]
[1744637796696,0.55,1660.1,1659.4,6.02592]
[1744637796897,0.55,1660.1,1659.3,0.3955096]
[1744637796898,6.02618,1659.5,1659.3,0.3955096]
[1744637797102,6.02627,1659.4,1659.3,0.3955096]
[1744637797396,8.283,1659.7,1659.3,0.3955096]
[1744637797622,14.3083,1659.7,1659.3,6.4219596]
[1744637797904,14.30825,1659.7,1659.3,6.4220796]
[1744637798077,8.283,1659.7,1659.3,1.83401756]
[1744637798284,8.283,1659.7,1659.3,7.2184196]
[1744637798593,0.8051,1659.9,1659.3,1.1918096]
[1744637798889,6.02516,1659.8,1659.4,12.05235]
[1744637799073,6.82976,1659.9,1659.5,6.02576]
[1744637799267,6.82976,1659.9,1659.4,6.02622]
[1744637799268,6.02508,1659.8,1659.4,6.02622]
[1744637799470,0.8051,1659.9,1659.4,6.02622]
[1744637799471,6.82957,1659.9,1659.5,6.02558]
[1744637799692,6.02447,1659.9,1659.5,6.02558]
[1744637799899,6.02447,1659.9,1659.4,1.32446296]
[1744637799900,6.02501,1659.8,1659.4,7.35069296]
[1744637800169,6.02501,1659.8,1659.4,13.37685296]
[1744637800420,6.02501,1659.8,1659.4,7.35061296]
[1744637800630,61.25881,1660.1,1659.4,1.32446296]
[1744637800771,6.82521,1660.2,1659.8,6.02479]
[1744637800976,6.82521,1660.2,1659.8,6.02468]
[1744637801189,6.02411,1660.0,1659.6,6.02534]
[1744637801396,6.02538,1659.7,1659.3,7.2183196]
[1744637801672,6.02538,1659.7,1659.3,0.3955096]
[1744637801673,6.02627,1659.4,1659.3,0.3955096]
[1744637801873,7.35617,1659.4,1659.3,0.3955096]
[1744637802671,6.02556,1659.6,1659.3,0.3955096]
[1744637802914,16.387438,1659.7,1659.3,6.4220596]
[1744637802915,15.2349,1659.7,1659.3,6.4220596]
[1744637803097,6.02606,1659.5,1659.3,0.3955096]
[1744637803295,12.05128,1659.6,1659.3,0.3955096]
[1744637803482,6.0262,1659.5,1659.3,0.3955096]
[1744637803670,6.02627,1659.4,1659.3,0.3955096]
[1744637803875,6.0262,1659.5,1659.3,0.3955096]
[1744637803876,6.02608,1659.5,1659.3,0.3955096]
[1744637804071,6.02607,1659.5,1659.3,0.3955096]
[1744637804279,6.02627,1659.4,1659.3,0.3955096]
[1744637805288,6.57627,1659.4,1659.3,0.3955096]
[1744637805875,6.02607,1659.5,1659.3,0.3955096]
[1744637806073,6.02627,1659.4,1659.3,0.3955096]
[1744637806313,6.57555,1659.6,1659.3,0.3955096]
[1744637806524,6.02627,1659.4,1659.3,0.3955096]
[1744637807619,8.611704,1659.4,1659.3,0.3955096]
[1744637807816,16.1606736,1659.4,1659.3,0.3955096]
[1744637808021,22.3306736,1659.4,1659.3,9.6e-06]
[1744637808201,7.4072,1659.2,1659.1,0.05]
[1744637808402,20.2421696,1659.2,1659.1,0.05]
[1744637808588,7.4072,1659.2,1659.1,0.05]
[1744637808788,9.22108612,1659.2,1659.1,0.05]
[1744637809116,17.50708612,1659.2,1659.1,0.05]
[1744637809273,15.1432,1659.2,1659.1,0.05]
[1744637810201,15.6932,1659.2,1659.1,0.05]
[1744637810606,15.6952,1659.2,1659.1,0.05]
[1744637811103,7.4072,1659.2,1659.1,0.05]
[1744637811476,6.8572,1659.2,1659.1,0.05]
[1744637811671,14.3148,1659.3,1659.1,0.05]
[1744637811903,6.0268,1659.3,1659.1,0.05]
[1744637812118,12.05367,1659.3,1659.1,0.05]
[1744637812415,6.027,1659.2,1659.1,0.05]
[1744637812915,0.7536,1659.5,1659.1,0.05]
[1744637813081,6.02682,1659.3,1659.1,0.05]
[1744637813279,6.02641,1659.4,1659.1,6.07725]
[1744637813511,6.02641,1659.4,1659.1,1.26701556]
[1744637813722,6.02641,1659.4,1659.1,0.05]
[1744637814023,6.02573,1659.6,1659.3,6.02658]
[1744637814176,12.05072,1659.7,1659.3,12.05308]
[1744637814380,10.7189696,1659.8,1659.1,0.05]
[1744637814381,6.17,1659.8,1659.2,6.8134]
[1744637814630,6.02485,1659.8,1659.5,6.02573]
[1744637814796,61.27559,1659.9,1659.3,0.68134]
[1744637815004,55.251,1659.9,1659.6,6.02531]
[1744637815403,55.251,1659.9,1659.7,6.02517]
[1744637815899,6.02341,1660.2,1659.8,6.02465]
[1744637816097,6.02423,1660.0,1659.7,1.205069]
[1744637816305,0.7882,1660.6,1660.3,6.02291]
[1744637816530,6.02241,1660.5,1660.4,0.06022333]
[1744637816727,6.02313,1660.3,1659.9,6.78023]
[1744637816932,6.02265,1660.4,1659.9,2.036298]
[1744637817155,6.02379,1660.1,1659.9,0.7558]
[1744637817535,6.0239,1660.1,1659.7,14.011029]
[1744637817760,9.0752,1660.4,1659.7,14.011029]
[1744637817761,6.02366,1660.2,1659.8,6.02469]
[1744637818020,8.287,1660.4,1659.8,6.0246]
[1744637818223,11.3435196,1660.7,1660.1,6.02339]
[1744637818224,6.02235,1660.5,1660.1,6.02339]
[1744637818424,6.02235,1660.5,1659.7,1.960869]
[1744637818425,6.02373,1660.1,1660.0,0.7623]
[1744637818670,6.02191,1660.6,1659.8,6.02458]
[1744637818671,6.02339,1660.2,1659.8,6.02458]
[1744637818853,6.02305,1660.3,1659.9,6.02433]
[1744637819057,6.02212,1660.6,1660.2,6.02323]
[1744637819255,6.02248,1660.5,1660.2,6.02324]
[1744637819456,6.02198,1660.6,1660.2,6.02324]
[1744637819457,6.02198,1660.6,1660.3,6.02298]
[1744637819628,6.02244,1660.5,1660.2,1.988696]
[1744637819967,6.02296,1660.4,1660.0,6.81288]
[1744637820180,9.0598,1660.7,1660.0,6.81288]
[1744637820181,6.0223,1660.5,1660.0,0.7888]
[1744637820379,6.17,1660.8,1660.0,0.7888]
[1744637820670,6.02272,1660.4,1660.0,12.83669]
[1744637820833,12.0449,1660.5,1660.1,6.02357]
[1744637821039,0.55,1660.6,1660.0,6.81284]
[1744637821040,6.02268,1660.4,1660.0,6.81284]
[1744637821234,0.7735,1661.0,1660.0,7.493954]
[1744637821568,4.23604989,1662.1,1660.3,0.7565]
[1744637821569,12.7759696,1661.2,1660.3,0.7565]
[1744637821768,6.02223,1660.6,1660.3,0.7565]
[1744637821951,6.02264,1660.4,1660.0,7.461624]
[1744637822185,8.226,1660.7,1660.0,1.437584]
[1744637822376,6.9966,1661.1,1660.1,0.7563]
[1744637822579,6.02075,1661.0,1660.6,6.02184]
[1744637822740,8.226,1661.2,1660.5,6.78337]
[1744637823071,6.02095,1660.9,1660.5,6.78325]
[1744637823265,6.02062,1661.0,1660.5,0.7611]
[1744637823472,6.02013,1661.1,1660.7,6.02132]
[1744637823670,14.24576,1661.2,1660.8,6.02099]
[1744637823969,20.26461,1661.4,1661.0,6.02046]
[1744637824263,4.72937493,1661.6,1661.0,6.78368]
[1744637824468,6.01955,1661.3,1661.0,0.7633]
[1744637824888,12.03922,1661.3,1661.0,0.7633]
[1744637825037,12.03983,1661.2,1661.0,0.7633]
[1744637825240,6.01983,1661.2,1660.7,0.602132]
[1744637825567,6.01983,1661.2,1660.7,0.7811]
[1744637825568,6.02047,1661.0,1660.7,0.7811]
[1744637825872,6.02047,1661.0,1660.7,6.80261]
[1744637826042,8.224,1661.2,1660.8,6.02119]
[1744637826368,6.0201,1661.1,1660.8,6.02119]
[1744637826575,6.01904,1661.4,1661.0,6.02033]
[1744637826972,6.01952,1661.3,1660.9,12.04144]
[1744637827268,6.01904,1661.4,1660.9,1.204144]
[1744637827469,6.01904,1661.4,1661.0,6.02029]
[1744637827670,6.01866,1661.5,1660.7,6.80265]
[1744637827671,9.0212,1661.6,1660.8,6.02115]
[1744637827880,6.02002,1661.2,1660.8,6.02115]
[1744637828190,6.02002,1661.2,1660.8,12.04223]
[1744637828344,6.02002,1661.2,1660.9,6.02079]
[1744637828548,6.01902,1661.4,1660.9,7.16394147]
[1744637828754,6.01902,1661.4,1661.0,6.02016]
[1744637828954,6.01902,1661.4,1660.9,7.10392402]